Workbook

Sheet Меню младшие 1-4 кл (2)
A1: № рецептуры | B1: Наименование блюд | C1: Выход,г | D1: Белки, г | E1: Жиры, г | F1: Углеводы, г | G1: Калорийность, ккал | H1: Витамин B1, мг | I1: Витамин С, мг | J1: Витамин А, мг | K1: Витамин Е, мг | L1: Ca, мг | M1: P, мг | N1: Mg, мг | O1: Fe, мг
B2: 1-ая неделя
B3: 1 день
A4: ТТК | B4: Салат из моркови с яблоками | C4: 60 | D4: 0.64 | E4: 3.01 | F4: 5.11 | G4: 50.91 | H4: 0.03 | I4: 2.63 | J4: 0.00 | K4: 0.21 | L4: 14.40 | M4: 26.72 | N4: 18.23 | O4: 0.64
A5: ТТК | B5: Котлета из мяса птицы | C5: 90 | D5: 10.20 | E5: 12.93 | F5: 13.79 | G5: 198.00 | H5: 0.09 | I5: 0.94 | J5: 46.26 | K5: 2.52 | L5: 77.83 | M5: 85.09 | N5: 18.72 | O5: 1.26
A6: № 203 Сбор.рец. На прод-ию для обуч. Во всех образ.учреж-Дели 2017 | B6: Макаронные изделия отварные с маслом сливочным | C6: 150/5 | D6: 5.70 | E6: 4.30 | F6: 31.99 | G6: 189.30 | H6: 0.06 | I6: 0.00 | J6: 20.00 | K6: 0.82 | L6: 12.39 | M6: 38.67 | N6: 8.62 | O6: 0.86
A7: №349 Сбор.рец. На прод-ию для обуч. Во всех образ.учреж-Дели 2017 | B7: Компот из сухофруктов (75С) | C7: 200 | D7: 0.66 | E7: 0.09 | F7: 22.03 | G7: 92.80 | H7: 0.02 | I7: 0.73 | J7: 0.00 | K7: 0.51 | L7: 32.18 | M7: 23.44 | N7: 17.46 | O7: 0.67
A8: Хим.состав и калорийность российских продуктов питания,табл 6, стр 144 , 2012 Дели + | B8: Хлеб ржаной | C8: 30 | D8: 1.98 | E8: 0.36 | F8: 11.88 | G8: 59.40 | H8: 0.05 | I8: 0.00 | J8: 0.00 | K8: 0.42 | L8: 8.70 | M8: 45.00 | N8: 14.10 | O8: 1.17
B9: Итого: | C9: 535 | D9: =SUM(D4:D8) -> 19.18 | E9: =SUM(E4:E8) -> 20.69 | F9: 84.80 | G9: 590.41 | H9: 0.25 | I9: 4.29 | J9: 66.26 | K9: 4.48 | L9: 145.49 | M9: 218.91 | N9: 77.13 | O9: 4.60
B11: 2 день
A12: Хим.состав и калорийность российских продуктов питания табл 9 стр 184 , 2012 Дели + | B12: Плоды и ягоды свежие (яблоки) | C12: 100 | D12: 0.40 | E12: 0.40 | F12: 9.80 | G12: 47.00 | H12: 0.03 | I12: 10.00 | K12: 0.20 | L12: 16.00 | M12: 11.00 | N12: 9.00 | O12: 2.20
A13: ТТК | B13: Сырники из творога с кашей молочной "Дружба" с маслом сливочным | C13: 60/150/5 | D13: 13.65 | E13: 15.29 | F13: 32.32 | G13: 330.90 | H13: 0.11 | I13: 0.88 | J13: 65.30 | K13: 1.83 | L13: 314.60 | M13: 252.49 | N13: 41.76 | O13: 1.01
A14: № 376 Сбор.рец. На прод-ию для обуч. Во всех образ.учреж-Дели 2017 | B14: Чай с сахаром | C14: 190/10 | D14: 0.07 | E14: 0.02 | F14: 10.01 | G14: 40.00 | H14: 0.00 | I14: 0.03 | J14: 0.00 | K14: 0.00 | L14: 10.95 | M14: 2.80 | N14: 1.40 | O14: 0.27
A15: Хим.состав и калорийность российских продуктов питания,табл 6, стр 144 , 2012 Дели + | B15: Хлеб ржаной | C15: 30 | D15: 1.98 | E15: 0.36 | F15: 11.88 | G15: 59.40 | H15: 0.05 | I15: 0.00 | J15: 0.00 | K15: 0.42 | L15: 8.70 | M15: 45.00 | N15: 14.10 | O15: 1.17
B16: Итого: | C16: 545 | D16: =SUM(D12:D15) -> 16.10 | E16: =SUM(E12:E15) -> 16.07 | F16: 64.01 | G16: 477.30 | H16: 0.19 | I16: 10.91 | J16: 65.30 | K16: 2.45 | L16: 350.25 | M16: 311.29 | N16: 66.26 | O16: 4.65
B19: 3 день
A20: № 15 Сбор.рец. На прод-ию для обуч. Во всех образ.учреж-Дели -2017 | B20: Сыр порционно | C20: 10 | D20: 2.63 | E20: 2.66 | F20: 0.00 | G20: 34.33 | H20: 0.00 | I20: 0.07 | J20: 21.00 | K20: 0.04 | L20: 100.00 | M20: 60.00 | N20: 5.50 | O20: 0.07
A21: № 260 Сбор.рец. На прод-ию для обуч. Во всех образ.учреж-Дели -2017 | B21: Гуляш из говядины | C21: 50/50 | D21: 10.39 | E21: 14.79 | F21: 10.30 | G21: 221.00 | H21: 0.03 | I21: 0.92 | K21: 2.61 | L21: 61.81 | M21: 154.15 | N21: 22.03 | O21: 3.06
A22: № 171 Сбор.рец. На прод-ию для обуч. Во всех образ.учреж-Дели 2017 | B22: Каша гречневая рассыпчатая | C22: 150 | D22: 3.77 | E22: 2.29 | F22: 39.72 | G22: 214.00 | H22: 0.21 | I22: 0.00 | J22: 0.00 | K22: 0.40 | L22: 23.99 | M22: 207.35 | N22: 140.52 | O22: 4.71
A23: № 377 Сбор.рец. На прод-ию для обуч. Во всех образ.учреж-Дели 2017 | B23: Чай с сахаром, с лимоном | C23: 185/10/5 | D23: 0.11 | E23: 0.02 | F23: 10.15 | G23: 41.32 | H23: -0.00 | I23: 2.03 | J23: 0.00 | K23: 0.01 | L23: 13.25 | M23: 3.96 | N23: 2.16 | O23: 0.33
A24: Хим.состав и калорийность российских продуктов питания табл 6 стр 134 , 2012 Дели + | B24: Хлеб ржаной | C24: 50 | D24: 3.30 | E24: 0.60 | F24: 19.80 | G24: 99.00 | H24: 0.09 | I24: 0.00 | J24: 0.00 | K24: 0.70 | L24: 14.50 | M24: 75.00 | N24: 23.50 | O24: 1.95
B25: Итого: | C25: 510 | D25: =SUM(D20:D24) -> 20.20 | E25: =SUM(E20:E24) -> 20.36 | F25: 79.97 | G25: 609.65 | H25: 0.33 | I25: 3.02 | J25: 21.00 | K25: 3.76 | L25: 213.55 | M25: 500.46 | N25: 193.71 | O25: 10.12
B32: 4 день
A33: ТТК Хим.состав и калорийность российских продуктов питания,табл 8, стр 168 , 2012 Дели +, | B33: Свекла отварная дольками | C33: 60 | D33: 1.08 | E33: 0.06 | F33: 5.88 | G33: 28.80 | H33: 0.01 | I33: 5.34 | J33: 0.00 | K33: 0.06 | L33: 27.00 | M33: 30.60 | N33: 15.60 | O33: 1.02
A34: ТТК | B34: Котлета из мяса птицы | C34: 90 | D34: 10.20 | E34: 12.93 | F34: 13.79 | G34: 198.00 | H34: 0.09 | I34: 0.94 | J34: 46.26 | K34: 2.52 | L34: 77.83 | M34: 85.09 | N34: 18.72 | O34: 1.26
A35: № 312 Сбор.рец. На прод-ию для обуч. Во всех образ.учреж-Дели -2017 | B35: Пюре картофельное с маслом сливочным | C35: 150/3 | D35: 3.08 | E35: 6.25 | F35: 20.47 | G35: 150.45 | H35: 0.14 | I35: 18.16 | J35: 8.00 | K35: 0.20 | L35: 37.46 | M35: 87.20 | N35: 27.75 | O35: 1.01
A36: № 376 Сбор.рец. На прод-ию для обуч. Во всех образ.учреж-Дели 2017 | B36: Чай с сахаром, с яблоком | C36: 180/10/10 | D36: 0.11 | E36: 0.06 | F36: 10.98 | G36: 44.70 | H36: 0.00 | I36: 1.03 | J36: 0.00 | K36: 0.02 | L36: 12.55 | M36: 3.90 | N36: 2.30 | O36: 0.48
A37: Хим.состав и калорийность российских продуктов питания табл 6 стр 134 , 2012 Дели + | B37: Хлеб пшеничный | C37: 30 | D37: 2.28 | E37: 0.24 | F37: 14.76 | G37: 70.50 | H37: 0.03 | I37: 0.00 | J37: 0.00 | K37: 0.33 | L37: 6.00 | M37: 19.50 | N37: 4.20 | O37: 0.33
A38: Хим.состав и калорийность российских продуктов питания,табл 6, стр 144 , 2012 Дели + | B38: Хлеб ржаной | C38: 40 | D38: =D24*0.8 -> 2.64 | E38: =E24*0.8 -> 0.48 | F38: 15.84 | G38: 79.20 | H38: 0.07 | I38: 0.00 | J38: 0.00 | K38: 0.56 | L38: 11.60 | M38: 60.00 | N38: 18.80 | O38: 1.56
B39: Итого: | C39: 573 | D39: =SUM(D33:D38) -> 19.39 | E39: =SUM(E33:E38) -> 20.02 | F39: 81.72 | G39: 571.65 | H39: 0.34 | I39: 25.47 | J39: 54.26 | K39: 3.69 | L39: 172.43 | M39: 286.28 | N39: 87.37 | O39: 5.66
B41: 5 день
A42: № 15 Сбор.рец. На прод-ию для обуч. Во всех образ.учреж-Дели 2017 | B42: Сыр порционно | C42: 15 | D42: 3.95 | E42: 3.99 | F42: 0.00 | G42: 51.50 | H42: 0.01 | I42: 0.11 | J42: 31.50 | K42: 0.06 | L42: 150.00 | M42: 90.00 | N42: 8.25 | O42: 0.11
A43: №279,331 Сбор.рец. На прод-ию для питания детей в дошк образоват учрежд-Дели 2017 | B43: Тефтели мясные в сметанно-томатном соусе | C43: 60/40 | D43: 7.284 | E43: 11.940 | F43: 8.360 | G43: 124 | H43: 0.048 | I43: 0.276 | J43: 29.620 | K43: 0.421 | L43: 20.726 | M43: 80.202 | N43: 15.521 | O43: 0.640
A44: № 203 Сбор.рец. На прод-ию для обуч. Во всех образ.учреж-Дели 2017 | B44: Макаронные изделия отварные с маслом сливочным | C44: 180/5 | D44: 5.10 | E44: 3.62 | F44: 31.96 | G44: 176.10 | H44: 0.06 | I44: 0.00 | J44: 12.00 | K44: 0.80 | L44: 11.91 | M44: 38.07 | N44: 8.62 | O44: 0.86
A45: ТТК | B45: Напиток из свежих фруктов (75С) | C45: 200 | D45: 0.34 | E45: 0.17 | F45: 21.46 | G45: 103.50 | H45: 0.02 | I45: 3.17 | J45: 0.00 | K45: 0.13 | L45: 16.67 | M45: 7.05 | N45: 7.78 | O45: 0.88
A46: Хим.состав и калорийность российских продуктов питания табл 6 стр 134 , 2012 Дели + | B46: Хлеб пшеничный | C46: 45 | D46: =D37*1.5 -> 3.42 | E46: =E37*1.5 -> 0.36 | F46: 22.14 | G46: 105.75 | H46: 0.05 | I46: 0.00 | J46: 0.00 | K46: 0.50 | L46: 9.00 | M46: 29.25 | N46: 6.30 | O46: 0.50
B47: Итого: | C47: 545 | D47: =SUM(D42:D46) -> 20.09 | E47: =SUM(E42:E46) -> 20.08 | F47: 83.92 | G47: 560.84 | H47: 0.18 | I47: 3.55 | J47: 73.12 | K47: 1.91 | L47: 208.31 | M47: 244.57 | N47: 46.47 | O47: 2.98
B52: 2-ая неделя
B53: 1 день
A54: ТТК | B54: Сырники из творога с кашей пшенной молочной с маслом сливочным | C54: 60/180/5 | D54: 16.02 | E54: 18.13 | F54: 42.98 | G54: 386.40 | H54: 0.13 | I54: 1.02 | J54: 67.52 | K54: 1.84 | L54: 344.24 | M54: 275.54 | N54: 47.35 | O54: 1.13
A55: № 376 Сбор.рец. На прод-ию для обуч. Во всех образ.учреж-Дели 2017 | B55: Чай "Витаминный" с шиповником | C55: 185/10/5 | D55: 0.24 | E55: 0.09 | F55: 12.43 | G55: 54.20 | H55: 0.00 | I55: 50.03 | J55: 0.00 | K55: 0.19 | L55: 13.95 | M55: 3.65 | N55: 2.25 | O55: 0.42
A56: Хим.состав и калорийность российских продуктов питания табл 6 стр 134 , 2012 Дели + | B56: Хлеб пшеничный | C56: 25 | D56: 1.90 | E56: 0.20 | F56: 12.30 | G56: 58.75 | H56: 0.03 | I56: 0.00 | J56: 0.00 | K56: 0.28 | L56: 5.00 | M56: 16.25 | N56: 3.50 | O56: 0.28
A57: Хим.состав и калорийность российских продуктов питания,табл 6, стр 144 , 2012 Дели + | B57: Хлеб ржаной | C57: 30 | D57: 1.98 | E57: 0.36 | F57: 11.88 | G57: 59.40 | H57: 0.05 | I57: 0.00 | J57: 0.00 | K57: 0.42 | L57: 8.70 | M57: 45.00 | N57: 14.10 | O57: 1.17 | P57: 25%
B58: Итого: | C58: 500 | D58: =SUM(D54:D57) -> 20.14 | E58: =SUM(E54:E57) -> 18.78 | F58: 79.59 | G58: 558.75 | H58: 0.21 | I58: 51.05 | J58: 67.52 | K58: 2.72 | L58: 371.89 | M58: 340.44 | N58: 67.20 | O58: 2.99
B60: 2 день
A61: Хим.состав и калорийность российских продуктов питания табл 9 стр 184 , 2012 Дели + | B61: Плоды и ягоды свежие (яблоки) | C61: 100 | D61: 0.40 | E61: 0.40 | F61: 9.80 | G61: 47.00 | H61: 0.03 | I61: 10.00 | K61: 0.20 | L61: 16.00 | M61: 11.00 | N61: 9.00 | O61: 2.20
A62: № 265 Сбор.рец. На прод-ию для обуч. Во всех образ.учреж-Дели -2017 | B62: Плов из говядины с рисовой крупой | C62: 50/150 | D62: 15.95 | E62: 19.55 | F62: 39.75 | G62: 408.42 | H62: 0.04 | I62: 0.27 | J62: 0.00 | K62: 4.23 | L62: 89.33 | M62: 176.23 | N62: 40.58 | O62: 2.64
A63: № 376 Сбор.рец. На прод-ию для обуч. Во всех образ.учреж-Дели 2017 | B63: Чай с сахаром | C63: 190/10 | D63: 0.07 | E63: 0.02 | F63: 10.01 | G63: 40.00 | H63: 0.00 | I63: 0.03 | J63: 0.00 | K63: 0.00 | L63: 10.95 | M63: 2.80 | N63: 1.40 | O63: 0.27
A64: Хим.состав и калорийность российских продуктов питания табл 6 стр 134 , 2012 Дели + | B64: Хлеб пшеничный | C64: 25 | D64: 1.90 | E64: 0.20 | F64: 12.30 | G64: 58.75 | H64: 0.03 | I64: 0.00 | J64: 0.00 | K64: 0.28 | L64: 5.00 | M64: 16.25 | N64: 3.50 | O64: 0.28
A65: Хим.состав и калорийность российских продуктов питания,табл 6, стр 144 , 2012 Дели + | B65: Хлеб ржаной | C65: 20 | D65: 1.32 | E65: 0.24 | F65: 7.92 | G65: 39.60 | H65: 0.03 | I65: 0.00 | J65: 0.00 | K65: 0.28 | L65: 5.80 | M65: 30.00 | N65: 9.40 | O65: 0.78
B66: Итого: | C66: 545 | D66: =SUM(D61:D65) -> 19.64 | E66: =SUM(E61:E65) -> 20.41 | F66: 79.78 | G66: 593.77 | H66: 0.13 | I66: 10.30 | J66: 0.00 | K66: 4.98 | L66: 127.08 | M66: 236.28 | N66: 63.88 | O66: 6.16
B68: 3 день
A69: № 52 Сбор.рец. На прод-ию для обуч. Во всех образ.учреж-Дели -2017 | B69: Салат из отварной свеклы | C69: 60 | D69: 0.84 | E69: 3.61 | F69: 4.96 | G69: 55.68 | H69: 0.01 | I69: 3.99 | J69: 0.00 | K69: 1.62 | L69: 21.28 | M69: 24.38 | N69: 12.42 | O69: 0.79
A70: № 229 Сбор.рец. На прод-ию для обуч. Во всех образ.учреж-Дели 2017 | B70: Рыба, тушенная в томате с овощами | C70: 50/50 | D70: 9.05 | E70: 6.09 | F70: 3.80 | G70: 105.00 | H70: 0.05 | I70: 3.73 | J70: 5.82 | K70: 2.52 | L70: 69.07 | M70: 162.19 | N70: 48.53 | O70: 0.85
A71: № 312 Сбор.рец. На прод-ию для обуч. Во всех образ.учреж-Дели -2017 | B71: Пюре картофельное с маслом сливочным | C71: 150/3 | D71: 3.08 | E71: 6.25 | F71: 20.47 | G71: 150.45 | H71: 0.14 | I71: 18.16 | J71: 8.00 | K71: 0.20 | L71: 37.46 | M71: 87.20 | N71: 27.75 | O71: 1.01 | P71: 25%
A72: №342 Сбор.рец. На прод-ию для обуч. Во всех образ.учреж-Дели 2017 | B72: Компот из свежих яблок (75С) | C72: 200 | D72: 0.16 | E72: 0.16 | F72: 17.90 | G72: 74.60 | H72: 0.01 | I72: 0.90 | J72: 0.00 | K72: 0.08 | L72: 13.88 | M72: 4.40 | N72: 5.14 | O72: 0.92
A73: Хим.состав и калорийность российских продуктов питания табл 6 стр 134 , 2012 Дели + | B73: Хлеб пшеничный | C73: 35 | D73: 2.66 | E73: 0.28 | F73: 17.22 | G73: 82.25 | H73: 0.04 | I73: 0.00 | J73: 0.00 | K73: 0.39 | L73: 7.00 | M73: 22.75 | N73: 4.90 | O73: 0.39
B74: Итого: | C74: 548 | D74: =SUM(D69:D73) -> 15.79 | E74: =SUM(E69:E73) -> 16.39 | F74: 64.34 | G74: 467.98 | H74: 0.25 | I74: 26.78 | J74: 13.82 | K74: 4.81 | L74: 148.68 | M74: 300.91 | N74: 98.74 | O74: 3.96
P79: 25%
B81: 4 день
A82: ТТК | B82: Тефтели куриные с гречневой крупой в сметанно-томатном соусе | C82: 60/40 | D82: 3.17 | E82: 5.19 | F82: 9.85 | G82: 118.01 | H82: 0.07 | I82: 0.28 | J82: 29.62 | K82: 0.46 | L82: 61.68 | M82: 92.80 | N82: 26.56 | O82: 1.04
A83: № 203 Сбор.рец. На прод-ию для обуч. Во всех образ.учреж-Дели 2017 | B83: Макаронные изделия отварные с маслом сливочным | C83: 180/3 | D83: 6.64 | E83: 7.60 | F83: 31.78 | G83: 221.94 | H83: 0.07 | I83: 0.00 | J83: 12.00 | K83: 1.19 | L83: 6.55 | M83: 45.50 | N83: 25.34 | O83: 1.33
A84: № 382 Сбор.рец. На прод-ию для обуч. Во всех образ.учреж-Дели 2017 | B84: Какао с молоком | C84: 200 | D84: 4.08 | E84: 3.54 | F84: 7.60 | G84: 78.60 | H84: 0.06 | I84: 1.59 | J84: 24.40 | K84: 0.00 | L84: 151.92 | M84: 124.56 | N84: 21.34 | O84: 0.45
A85: Хим.состав и калорийность российских продуктов питания табл 6 стр 134 , 2012 Дели + | B85: Хлеб пшеничный | C85: 30 | D85: 2.28 | E85: 0.24 | F85: 14.76 | G85: 70.50 | H85: 0.03 | I85: 0.00 | J85: 0.00 | K85: 0.33 | L85: 6.00 | M85: 19.50 | N85: 4.20 | O85: 0.33
B86: Итого: | C86: 513 | D86: =D82+D83+D84+D85 -> 16.17 | E86: =E82+E83+E84+E85 -> 16.57 | F86: 63.98 | G86: 489.05 | H86: 0.22 | I86: 1.86 | J86: 66.02 | K86: 1.98 | L86: 226.15 | M86: 282.37 | N86: 77.44 | O86: 3.15
P87: 25%
B88: 5 день
A89: Хим.состав и калорийность российских продуктов питания табл 9 стр 184 , 2012 Дели + | B89: Плоды и ягоды свежие (яблоки) | C89: 100 | D89: 0.40 | E89: 0.40 | F89: 9.80 | G89: 47.00 | H89: 0.03 | I89: 10.00 | K89: 0.20 | L89: 16.00 | M89: 11.00 | N89: 9.00 | O89: 2.20
A90: № 143,241 Сбор.рец. На прод-ию для обуч. Во всех образ.учреж-Дели 2017 | B90: Овощи тушеные с мясом | C90: 50/150 | D90: 12.48 | E90: 15.68 | F90: 19.34 | G90: 271.50 | H90: 0.12 | I90: 18.77 | J90: 39.00 | K90: 4.67 | L90: 89.15 | M90: 148.63 | N90: 39.69 | O90: 2.23
A91: №349 Сбор.рец. На прод-ию для обуч. Во всех образ.учреж-Дели 2017 | B91: Компот из сухофруктов (75С) | C91: 200 | D91: 0.66 | E91: 0.09 | F91: 22.03 | G91: 92.80 | H91: 0.02 | I91: 0.73 | J91: 0.00 | K91: 0.51 | L91: 32.18 | M91: 23.44 | N91: 17.46 | O91: 0.67
A92: Хим.состав и калорийность российских продуктов питания табл 6 стр 134 , 2012 Дели + | B92: Хлеб пшеничный | C92: 30 | D92: 2.28 | E92: 0.24 | F92: 14.76 | G92: 70.50 | H92: 0.03 | I92: 0.00 | J92: 0.00 | K92: 0.33 | L92: 6.00 | M92: 19.50 | N92: 4.20 | O92: 0.33
B93: Итого: | C93: 530 | D93: =SUM(D89:D92) -> 15.82 | E93: =SUM(E89:E92) -> 16.41 | F93: 65.93 | G93: 481.80 | H93: 0.20 | I93: 29.49 | J93: 39.00 | K93: 5.71 | L93: 143.33 | M93: 202.57 | N93: 70.35 | O93: 5.42

Sheet Меню младшие 1-4 кл
A1: № рецептуры | B1: Наименование блюд | C1: Выход,г | D1: Белки, г | E1: Жиры, г | F1: Углеводы, г | G1: Калорийность, ккал | H1: Витамин B1, мг | I1: Витамин С, мг | J1: Витамин А, мг | K1: Витамин Е, мг | L1: Ca, мг | M1: P, мг | N1: Mg, мг | O1: Fe, мг
B2: 1-ая неделя
B3: 1 день
A4: ТТК | B4: Салат из моркови с яблоками | C4: 60 | D4: 0.64 | E4: 3.01 | F4: 5.11 | G4: 50.91 | H4: 0.03 | I4: 2.63 | J4: 0.00 | K4: 0.21 | L4: 14.40 | M4: 26.72 | N4: 18.23 | O4: 0.64
A5: ТТК | B5: Котлета из мяса птицы | C5: 90 | D5: 10.20 | E5: 12.93 | F5: 13.79 | G5: 198.00 | H5: 0.09 | I5: 0.94 | J5: 46.26 | K5: 2.52 | L5: 77.83 | M5: 85.09 | N5: 18.72 | O5: 1.26
A6: № 203 Сбор.рец. На прод-ию для обуч. Во всех образ.учреж-Дели 2017 | B6: Макаронные изделия отварные с маслом сливочным | C6: 150/5 | D6: 5.70 | E6: 4.30 | F6: 31.99 | G6: 189.30 | H6: 0.06 | I6: 0.00 | J6: 20.00 | K6: 0.82 | L6: 12.39 | M6: 38.67 | N6: 8.62 | O6: 0.86
A7: №349 Сбор.рец. На прод-ию для обуч. Во всех образ.учреж-Дели 2017 | B7: Компот из сухофруктов (75С) | C7: 200 | D7: 0.66 | E7: 0.09 | F7: 22.03 | G7: 92.80 | H7: 0.02 | I7: 0.73 | J7: 0.00 | K7: 0.51 | L7: 32.18 | M7: 23.44 | N7: 17.46 | O7: 0.67
A8: Хим.состав и калорийность российских продуктов питания,табл 6, стр 144 , 2012 Дели + | B8: Хлеб ржаной | C8: 30 | D8: 1.98 | E8: 0.36 | F8: 11.88 | G8: 59.40 | H8: 0.05 | I8: 0.00 | J8: 0.00 | K8: 0.42 | L8: 8.70 | M8: 45.00 | N8: 14.10 | O8: 1.17
B9: Итого: | C9: 535 | D9: =SUM(D4:D8) -> 19.18 | E9: =SUM(E4:E8) -> 20.69 | F9: 84.80 | G9: 590.41 | H9: 0.25 | I9: 4.29 | J9: 66.26 | K9: 4.48 | L9: 145.49 | M9: 218.91 | N9: 77.13 | O9: 4.60
B11: 2 день
A12: Хим.состав и калорийность российских продуктов питания табл 9 стр 184 , 2012 Дели + | B12: Плоды и ягоды свежие (яблоки) | C12: 100 | D12: 0.40 | E12: 0.40 | F12: 9.80 | G12: 47.00 | H12: 0.03 | I12: 10.00 | K12: 0.20 | L12: 16.00 | M12: 11.00 | N12: 9.00 | O12: 2.20
A13: ТТК | B13: Сырники из творога с кашей молочной "Дружба" с маслом сливочным | C13: 60/150/5 | D13: 13.65 | E13: 15.29 | F13: 32.32 | G13: 330.90 | H13: 0.11 | I13: 0.88 | J13: 65.30 | K13: 1.83 | L13: 314.60 | M13: 252.49 | N13: 41.76 | O13: 1.01
A14: № 376 Сбор.рец. На прод-ию для обуч. Во всех образ.учреж-Дели 2017 | B14: Чай с сахаром | C14: 190/10 | D14: 0.07 | E14: 0.02 | F14: 10.01 | G14: 40.00 | H14: 0.00 | I14: 0.03 | J14: 0.00 | K14: 0.00 | L14: 10.95 | M14: 2.80 | N14: 1.40 | O14: 0.27
A15: Хим.состав и калорийность российских продуктов питания,табл 6, стр 144 , 2012 Дели + | B15: Хлеб ржаной | C15: 30 | D15: 1.98 | E15: 0.36 | F15: 11.88 | G15: 59.40 | H15: 0.05 | I15: 0.00 | J15: 0.00 | K15: 0.42 | L15: 8.70 | M15: 45.00 | N15: 14.10 | O15: 1.17
B16: Итого: | C16: 545 | D16: =SUM(D12:D15) -> 16.10 | E16: =SUM(E12:E15) -> 16.07 | F16: 64.01 | G16: 477.30 | H16: 0.19 | I16: 10.91 | J16: 65.30 | K16: 2.45 | L16: 350.25 | M16: 311.29 | N16: 66.26 | O16: 4.65
B19: 3 день
A20: № 15 Сбор.рец. На прод-ию для обуч. Во всех образ.учреж-Дели -2017 | B20: Сыр порционно | C20: 10 | D20: 2.63 | E20: 2.66 | F20: 0.00 | G20: 34.33 | H20: 0.00 | I20: 0.07 | J20: 21.00 | K20: 0.04 | L20: 100.00 | M20: 60.00 | N20: 5.50 | O20: 0.07
A21: № 260 Сбор.рец. На прод-ию для обуч. Во всех образ.учреж-Дели -2017 | B21: Гуляш из говядины | C21: 50/50 | D21: 10.39 | E21: 14.79 | F21: 10.30 | G21: 221.00 | H21: 0.03 | I21: 0.92 | K21: 2.61 | L21: 61.81 | M21: 154.15 | N21: 22.03 | O21: 3.06
A22: № 171 Сбор.рец. На прод-ию для обуч. Во всех образ.учреж-Дели 2017 | B22: Каша гречневая рассыпчатая | C22: 150 | D22: 3.77 | E22: 2.29 | F22: 39.72 | G22: 214.00 | H22: 0.21 | I22: 0.00 | J22: 0.00 | K22: 0.40 | L22: 23.99 | M22: 207.35 | N22: 140.52 | O22: 4.71
A23: № 377 Сбор.рец. На прод-ию для обуч. Во всех образ.учреж-Дели 2017 | B23: Чай с сахаром, с лимоном | C23: 185/10/5 | D23: 0.11 | E23: 0.02 | F23: 10.15 | G23: 41.32 | H23: -0.00 | I23: 2.03 | J23: 0.00 | K23: 0.01 | L23: 13.25 | M23: 3.96 | N23: 2.16 | O23: 0.33
A24: Хим.состав и калорийность российских продуктов питания табл 6 стр 134 , 2012 Дели + | B24: Хлеб ржаной | C24: 50 | D24: 3.30 | E24: 0.60 | F24: 19.80 | G24: 99.00 | H24: 0.09 | I24: 0.00 | J24: 0.00 | K24: 0.70 | L24: 14.50 | M24: 75.00 | N24: 23.50 | O24: 1.95
B25: Итого: | C25: 510 | D25: =SUM(D20:D24) -> 20.20 | E25: =SUM(E20:E24) -> 20.36 | F25: 79.97 | G25: 609.65 | H25: 0.33 | I25: 3.02 | J25: 21.00 | K25: 3.76 | L25: 213.55 | M25: 500.46 | N25: 193.71 | O25: 10.12
B32: 4 день
A33: ТТК Хим.состав и калорийность российских продуктов питания,табл 8, стр 168 , 2012 Дели +, | B33: Свекла отварная дольками | C33: 60 | D33: 1.08 | E33: 0.06 | F33: 5.88 | G33: 28.80 | H33: 0.01 | I33: 5.34 | J33: 0.00 | K33: 0.06 | L33: 27.00 | M33: 30.60 | N33: 15.60 | O33: 1.02
A34: ТТК | B34: Котлета из мяса птицы | C34: 90 | D34: 10.20 | E34: 12.93 | F34: 13.79 | G34: 198.00 | H34: 0.09 | I34: 0.94 | J34: 46.26 | K34: 2.52 | L34: 77.83 | M34: 85.09 | N34: 18.72 | O34: 1.26
A35: № 312 Сбор.рец. На прод-ию для обуч. Во всех образ.учреж-Дели -2017 | B35: Пюре картофельное с маслом сливочным | C35: 150/3 | D35: 3.08 | E35: 6.25 | F35: 20.47 | G35: 150.45 | H35: 0.14 | I35: 18.16 | J35: 8.00 | K35: 0.20 | L35: 37.46 | M35: 87.20 | N35: 27.75 | O35: 1.01
A36: № 376 Сбор.рец. На прод-ию для обуч. Во всех образ.учреж-Дели 2017 | B36: Чай с сахаром, с яблоком | C36: 180/10/10 | D36: 0.11 | E36: 0.06 | F36: 10.98 | G36: 44.70 | H36: 0.00 | I36: 1.03 | J36: 0.00 | K36: 0.02 | L36: 12.55 | M36: 3.90 | N36: 2.30 | O36: 0.48
A37: Хим.состав и калорийность российских продуктов питания табл 6 стр 134 , 2012 Дели + | B37: Хлеб пшеничный | C37: 30 | D37: 2.28 | E37: 0.24 | F37: 14.76 | G37: 70.50 | H37: 0.03 | I37: 0.00 | J37: 0.00 | K37: 0.33 | L37: 6.00 | M37: 19.50 | N37: 4.20 | O37: 0.33
A38: Хим.состав и калорийность российских продуктов питания,табл 6, стр 144 , 2012 Дели + | B38: Хлеб ржаной | C38: 40 | D38: =D24*0.8 -> 2.64 | E38: =E24*0.8 -> 0.48 | F38: 15.84 | G38: 79.20 | H38: 0.07 | I38: 0.00 | J38: 0.00 | K38: 0.56 | L38: 11.60 | M38: 60.00 | N38: 18.80 | O38: 1.56
B39: Итого: | C39: 573 | D39: =SUM(D33:D38) -> 19.39 | E39: =SUM(E33:E38) -> 20.02 | F39: 81.72 | G39: 571.65 | H39: 0.34 | I39: 25.47 | J39: 54.26 | K39: 3.69 | L39: 172.43 | M39: 286.28 | N39: 87.37 | O39: 5.66
B41: 5 день
A42: № 15 Сбор.рец. На прод-ию для обуч. Во всех образ.учреж-Дели 2017 | B42: Сыр порционно | C42: 15 | D42: 3.95 | E42: 3.99 | F42: 0.00 | G42: 51.50 | H42: 0.01 | I42: 0.11 | J42: 31.50 | K42: 0.06 | L42: 150.00 | M42: 90.00 | N42: 8.25 | O42: 0.11
A43: №279,331 Сбор.рец. На прод-ию для питания детей в дошк образоват учрежд-Дели 2017 | B43: Тефтели мясные в сметанно-томатном соусе | C43: 60/40 | D43: 7.284 | E43: 11.940 | F43: 8.360 | G43: 124 | H43: 0.048 | I43: 0.276 | J43: 29.620 | K43: 0.421 | L43: 20.726 | M43: 80.202 | N43: 15.521 | O43: 0.640
A44: № 203 Сбор.рец. На прод-ию для обуч. Во всех образ.учреж-Дели 2017 | B44: Макаронные изделия отварные с маслом сливочным | C44: 180/5 | D44: 5.10 | E44: 3.62 | F44: 31.96 | G44: 176.10 | H44: 0.06 | I44: 0.00 | J44: 12.00 | K44: 0.80 | L44: 11.91 | M44: 38.07 | N44: 8.62 | O44: 0.86
A45: ТТК | B45: Напиток из свежих фруктов (75С) | C45: 200 | D45: 0.34 | E45: 0.17 | F45: 21.46 | G45: 103.50 | H45: 0.02 | I45: 3.17 | J45: 0.00 | K45: 0.13 | L45: 16.67 | M45: 7.05 | N45: 7.78 | O45: 0.88
A46: Хим.состав и калорийность российских продуктов питания табл 6 стр 134 , 2012 Дели + | B46: Хлеб пшеничный | C46: 45 | D46: =D37*1.5 -> 3.42 | E46: =E37*1.5 -> 0.36 | F46: 22.14 | G46: 105.75 | H46: 0.05 | I46: 0.00 | J46: 0.00 | K46: 0.50 | L46: 9.00 | M46: 29.25 | N46: 6.30 | O46: 0.50
B47: Итого: | C47: 545 | D47: =SUM(D42:D46) -> 20.09 | E47: =SUM(E42:E46) -> 20.08 | F47: 83.92 | G47: 560.84 | H47: 0.18 | I47: 3.55 | J47: 73.12 | K47: 1.91 | L47: 208.31 | M47: 244.57 | N47: 46.47 | O47: 2.98
B52: 2-ая неделя
B53: 1 день
A54: ТТК | B54: Сырники из творога с кашей пшенной молочной с маслом сливочным | C54: 60/180/5 | D54: 16.02 | E54: 18.13 | F54: 42.98 | G54: 386.40 | H54: 0.13 | I54: 1.02 | J54: 67.52 | K54: 1.84 | L54: 344.24 | M54: 275.54 | N54: 47.35 | O54: 1.13
A55: № 376 Сбор.рец. На прод-ию для обуч. Во всех образ.учреж-Дели 2017 | B55: Чай "Витаминный" с шиповником | C55: 185/10/5 | D55: 0.24 | E55: 0.09 | F55: 12.43 | G55: 54.20 | H55: 0.00 | I55: 50.03 | J55: 0.00 | K55: 0.19 | L55: 13.95 | M55: 3.65 | N55: 2.25 | O55: 0.42
A56: Хим.состав и калорийность российских продуктов питания табл 6 стр 134 , 2012 Дели + | B56: Хлеб пшеничный | C56: 25 | D56: 1.90 | E56: 0.20 | F56: 12.30 | G56: 58.75 | H56: 0.03 | I56: 0.00 | J56: 0.00 | K56: 0.28 | L56: 5.00 | M56: 16.25 | N56: 3.50 | O56: 0.28
A57: Хим.состав и калорийность российских продуктов питания,табл 6, стр 144 , 2012 Дели + | B57: Хлеб ржаной | C57: 30 | D57: 1.98 | E57: 0.36 | F57: 11.88 | G57: 59.40 | H57: 0.05 | I57: 0.00 | J57: 0.00 | K57: 0.42 | L57: 8.70 | M57: 45.00 | N57: 14.10 | O57: 1.17 | P57: 25%
B58: Итого: | C58: 500 | D58: =SUM(D54:D57) -> 20.14 | E58: =SUM(E54:E57) -> 18.78 | F58: 79.59 | G58: 558.75 | H58: 0.21 | I58: 51.05 | J58: 67.52 | K58: 2.72 | L58: 371.89 | M58: 340.44 | N58: 67.20 | O58: 2.99
B60: 2 день
A61: Хим.состав и калорийность российских продуктов питания табл 9 стр 184 , 2012 Дели + | B61: Плоды и ягоды свежие (яблоки) | C61: 100 | D61: 0.40 | E61: 0.40 | F61: 9.80 | G61: 47.00 | H61: 0.03 | I61: 10.00 | K61: 0.20 | L61: 16.00 | M61: 11.00 | N61: 9.00 | O61: 2.20
A62: № 265 Сбор.рец. На прод-ию для обуч. Во всех образ.учреж-Дели -2017 | B62: Плов из говядины с рисовой крупой | C62: 50/150 | D62: 15.95 | E62: 19.55 | F62: 39.75 | G62: 408.42 | H62: 0.04 | I62: 0.27 | J62: 0.00 | K62: 4.23 | L62: 89.33 | M62: 176.23 | N62: 40.58 | O62: 2.64
A63: № 376 Сбор.рец. На прод-ию для обуч. Во всех образ.учреж-Дели 2017 | B63: Чай с сахаром | C63: 190/10 | D63: 0.07 | E63: 0.02 | F63: 10.01 | G63: 40.00 | H63: 0.00 | I63: 0.03 | J63: 0.00 | K63: 0.00 | L63: 10.95 | M63: 2.80 | N63: 1.40 | O63: 0.27
A64: Хим.состав и калорийность российских продуктов питания табл 6 стр 134 , 2012 Дели + | B64: Хлеб пшеничный | C64: 25 | D64: 1.90 | E64: 0.20 | F64: 12.30 | G64: 58.75 | H64: 0.03 | I64: 0.00 | J64: 0.00 | K64: 0.28 | L64: 5.00 | M64: 16.25 | N64: 3.50 | O64: 0.28
A65: Хим.состав и калорийность российских продуктов питания,табл 6, стр 144 , 2012 Дели + | B65: Хлеб ржаной | C65: 20 | D65: 1.32 | E65: 0.24 | F65: 7.92 | G65: 39.60 | H65: 0.03 | I65: 0.00 | J65: 0.00 | K65: 0.28 | L65: 5.80 | M65: 30.00 | N65: 9.40 | O65: 0.78
B66: Итого: | C66: 545 | D66: =SUM(D61:D65) -> 19.64 | E66: =SUM(E61:E65) -> 20.41 | F66: 79.78 | G66: 593.77 | H66: 0.13 | I66: 10.30 | J66: 0.00 | K66: 4.98 | L66: 127.08 | M66: 236.28 | N66: 63.88 | O66: 6.16
B68: 3 день
A69: № 52 Сбор.рец. На прод-ию для обуч. Во всех образ.учреж-Дели -2017 | B69: Салат из отварной свеклы | C69: 60 | D69: 0.84 | E69: 3.61 | F69: 4.96 | G69: 55.68 | H69: 0.01 | I69: 3.99 | J69: 0.00 | K69: 1.62 | L69: 21.28 | M69: 24.38 | N69: 12.42 | O69: 0.79
A70: № 229 Сбор.рец. На прод-ию для обуч. Во всех образ.учреж-Дели 2017 | B70: Рыба, тушенная в томате с овощами | C70: 50/50 | D70: 9.05 | E70: 6.09 | F70: 3.80 | G70: 105.00 | H70: 0.05 | I70: 3.73 | J70: 5.82 | K70: 2.52 | L70: 69.07 | M70: 162.19 | N70: 48.53 | O70: 0.85
A71: № 312 Сбор.рец. На прод-ию для обуч. Во всех образ.учреж-Дели -2017 | B71: Пюре картофельное с маслом сливочным | C71: 150/3 | D71: 3.08 | E71: 6.25 | F71: 20.47 | G71: 150.45 | H71: 0.14 | I71: 18.16 | J71: 8.00 | K71: 0.20 | L71: 37.46 | M71: 87.20 | N71: 27.75 | O71: 1.01 | P71: 25%
A72: №342 Сбор.рец. На прод-ию для обуч. Во всех образ.учреж-Дели 2017 | B72: Компот из свежих яблок (75С) | C72: 200 | D72: 0.16 | E72: 0.16 | F72: 17.90 | G72: 74.60 | H72: 0.01 | I72: 0.90 | J72: 0.00 | K72: 0.08 | L72: 13.88 | M72: 4.40 | N72: 5.14 | O72: 0.92
A73: Хим.состав и калорийность российских продуктов питания табл 6 стр 134 , 2012 Дели + | B73: Хлеб пшеничный | C73: 35 | D73: 2.66 | E73: 0.28 | F73: 17.22 | G73: 82.25 | H73: 0.04 | I73: 0.00 | J73: 0.00 | K73: 0.39 | L73: 7.00 | M73: 22.75 | N73: 4.90 | O73: 0.39
B74: Итого: | C74: 548 | D74: =SUM(D69:D73) -> 15.79 | E74: =SUM(E69:E73) -> 16.39 | F74: 64.34 | G74: 467.98 | H74: 0.25 | I74: 26.78 | J74: 13.82 | K74: 4.81 | L74: 148.68 | M74: 300.91 | N74: 98.74 | O74: 3.96
P79: 25%
B81: 4 день
A82: ТТК | B82: Тефтели куриные с гречневой крупой в сметанно-томатном соусе | C82: 60/40 | D82: 3.17 | E82: 5.19 | F82: 9.85 | G82: 118.01 | H82: 0.07 | I82: 0.28 | J82: 29.62 | K82: 0.46 | L82: 61.68 | M82: 92.80 | N82: 26.56 | O82: 1.04
A83: № 203 Сбор.рец. На прод-ию для обуч. Во всех образ.учреж-Дели 2017 | B83: Макаронные изделия отварные с маслом сливочным | C83: 180/3 | D83: 6.64 | E83: 7.60 | F83: 31.78 | G83: 221.94 | H83: 0.07 | I83: 0.00 | J83: 12.00 | K83: 1.19 | L83: 6.55 | M83: 45.50 | N83: 25.34 | O83: 1.33
A84: № 382 Сбор.рец. На прод-ию для обуч. Во всех образ.учреж-Дели 2017 | B84: Какао с молоком | C84: 200 | D84: 4.08 | E84: 3.54 | F84: 7.60 | G84: 78.60 | H84: 0.06 | I84: 1.59 | J84: 24.40 | K84: 0.00 | L84: 151.92 | M84: 124.56 | N84: 21.34 | O84: 0.45
A85: Хим.состав и калорийность российских продуктов питания табл 6 стр 134 , 2012 Дели + | B85: Хлеб пшеничный | C85: 30 | D85: 2.28 | E85: 0.24 | F85: 14.76 | G85: 70.50 | H85: 0.03 | I85: 0.00 | J85: 0.00 | K85: 0.33 | L85: 6.00 | M85: 19.50 | N85: 4.20 | O85: 0.33
B86: Итого: | C86: 513 | D86: =D82+D83+D84+D85 -> 16.17 | E86: =E82+E83+E84+E85 -> 16.57 | F86: 63.98 | G86: 489.05 | H86: 0.22 | I86: 1.86 | J86: 66.02 | K86: 1.98 | L86: 226.15 | M86: 282.37 | N86: 77.44 | O86: 3.15
P87: 25%
B88: 5 день
A89: Хим.состав и калорийность российских продуктов питания табл 9 стр 184 , 2012 Дели + | B89: Плоды и ягоды свежие (яблоки) | C89: 100 | D89: 0.40 | E89: 0.40 | F89: 9.80 | G89: 47.00 | H89: 0.03 | I89: 10.00 | K89: 0.20 | L89: 16.00 | M89: 11.00 | N89: 9.00 | O89: 2.20
A90: № 143,241 Сбор.рец. На прод-ию для обуч. Во всех образ.учреж-Дели 2017 | B90: Овощи тушеные с мясом | C90: 50/150 | D90: 12.48 | E90: 15.68 | F90: 19.34 | G90: 271.50 | H90: 0.12 | I90: 18.77 | J90: 39.00 | K90: 4.67 | L90: 89.15 | M90: 148.63 | N90: 39.69 | O90: 2.23
A91: №349 Сбор.рец. На прод-ию для обуч. Во всех образ.учреж-Дели 2017 | B91: Компот из сухофруктов (75С) | C91: 200 | D91: 0.66 | E91: 0.09 | F91: 22.03 | G91: 92.80 | H91: 0.02 | I91: 0.73 | J91: 0.00 | K91: 0.51 | L91: 32.18 | M91: 23.44 | N91: 17.46 | O91: 0.67
A92: Хим.состав и калорийность российских продуктов питания табл 6 стр 134 , 2012 Дели + | B92: Хлеб пшеничный | C92: 30 | D92: 2.28 | E92: 0.24 | F92: 14.76 | G92: 70.50 | H92: 0.03 | I92: 0.00 | J92: 0.00 | K92: 0.33 | L92: 6.00 | M92: 19.50 | N92: 4.20 | O92: 0.33
B93: Итого: | C93: 530 | D93: =SUM(D89:D92) -> 15.82 | E93: =SUM(E89:E92) -> 16.41 | F93: 65.93 | G93: 481.80 | H93: 0.20 | I93: 29.49 | J93: 39.00 | K93: 5.71 | L93: 143.33 | M93: 202.57 | N93: 70.35 | O93: 5.42

Sheet Меню старшие 5-11 кл
B12: Согласовано | I12: Разработано и утвеждено
B13: Руководитель общеобразовательного учреждения | I13: Директор ООО "ФУДСОЦСЕРВИС"
B15: ________________________ | I15: ________________Э.Р. Харламова
B20: Примерное цикличное двенадцатидневное меню
B21: Для организации питания обучающихся общеобразовательных организаций Республики Татарстан
B22: в возрасте с 12 лет и старше (5-11 классы)
B49: ПРИМЕРНОЕ ДВУХНЕДЕЛЬНОЕ МЕНЮ ДЛЯ ОБУЧАЮЩИХСЯ В ОБЩЕОБРАЗОВАТЕЛЬНЫХ ОРГАНИЗАЦИЯХ С 5 по 11 КЛАССЫ
B50: (общеобразовательные организации с режимом обучения до 6 часов)
A52: № рецептуры | B52: Наименование блюд | C52: Выход,г | D52: Белки, г | E52: Жиры, г | F52: Углеводы, г | G52: Калорийность, ккал | H52: Витамин B1, мг | I52: Витамин С, мг | J52: Витамин А, мг | K52: Витамин Е, мг | L52: Ca, мг | M52: P, мг | N52: Mg, мг | O52: Fe, мг
B53: 1-ая неделя
B54: 1 день
A55: ТТК | B55: Котлеты из мяса птицы с макаронными изделиями отварными, с маслом сливочным | C55: 90/150/3 | D55: 15.88 | E55: 17.78 | F55: 45.75 | G55: 374.10 | H55: 0.15 | I55: 0.94 | J55: 66.26 | K55: 3.34 | L55: 60.22 | M55: 123.75 | N55: 27.34 | O55: 2.12
A56: №349 Сбор.рец. На прод-ию для обуч. Во всех образ.учреж-Дели 2017 | B56: Компот из сухофруктов (75С) | C56: 200 | D56: 0.66 | E56: 0.09 | F56: 22.03 | G56: 92.80 | H56: 0.02 | I56: 0.73 | J56: 0.00 | K56: 0.51 | L56: 32.18 | M56: 23.44 | N56: 17.46 | O56: 0.67
A57: Хим.состав и калорийность российских продуктов питания,табл 6, стр 144 , 2012 Дели + | B57: Хлеб ржаной | C57: 30 | D57: 1.98 | E57: 0.36 | F57: 11.88 | G57: 59.40 | H57: 0.05 | I57: 0.00 | J57: 0.00 | K57: 0.42 | L57: 8.70 | M57: 45.00 | N57: 14.10 | O57: 1.17
B58: Итого: | C58: 473 | D58: =SUM(D55:D57) -> 18.52 | E58: =SUM(E55:E57) -> 18.23 | F58: 79.67 | G58: 526.30 | H58: 0.21 | I58: 1.66 | J58: 66.26 | K58: 4.27 | L58: 101.10 | M58: 192.19 | N58: 58.90 | O58: 3.96
B61: 2 день
A62: ТТК | B62: Сырники из творога с кашей молочной "Дружба" с маслом сливочным | C62: 60/180/3 | D62: 15.70 | E62: 16.83 | F62: 41.19 | G62: 376.80 | H62: 0.13 | I62: 1.02 | J62: 59.52 | K62: 1.82 | L62: 213.76 | M62: 274.94 | N62: 47.35 | O62: 1.13
A63: № 376 Сбор.рец. На прод-ию для обуч. Во всех образ.учреж-Дели 2017 | B63: Чай с сахаром | C63: 190/10 | D63: 0.07 | E63: 0.02 | F63: 10.01 | G63: 40.00 | H63: 0.00 | I63: 0.03 | J63: 0.00 | K63: 0.00 | L63: 10.95 | M63: 2.80 | N63: 1.40 | O63: 0.27
A64: Хим.состав и калорийность российских продуктов питания,табл 6, стр 144 , 2012 Дели + | B64: Хлеб ржаной | C64: 30 | D64: 1.98 | E64: 0.36 | F64: 11.88 | G64: 59.40 | H64: 0.05 | I64: 0.00 | J64: 0.00 | K64: 0.42 | L64: 8.70 | M64: 45.00 | N64: 14.10 | O64: 1.17
B65: Итого: | C65: 473 | D65: =SUM(D62:D64) -> 17.75 | E65: =SUM(E62:E64) -> 17.21 | F65: 63.08 | G65: 476.20 | H65: 0.18 | I65: 1.05 | J65: 59.52 | K65: 2.24 | L65: 233.41 | M65: 322.74 | N65: 62.85 | O65: 2.56
B67: 3 день
A68: № 260 Сбор.рец. На прод-ию для обуч. Во всех образ.учреж-Дели -2017 | B68: Гуляш из говядины | C68: 50/50 | D68: 10.39 | E68: 14.79 | F68: 10.30 | G68: 221.00 | H68: 0.03 | I68: 0.92 | K68: 2.61 | L68: 61.81 | M68: 154.15 | N68: 22.03 | O68: 3.06
A69: № 171 Сбор.рец. На прод-ию для обуч. Во всех образ.учреж-Дели 2017 | B69: Каша гречневая рассыпчатая | C69: 150 | D69: 3.77 | E69: 2.29 | F69: 39.72 | G69: 214.00 | H69: 0.21 | I69: 0.00 | J69: 0.00 | K69: 0.40 | L69: 23.99 | M69: 207.35 | N69: 140.52 | O69: 4.71
A70: № 377 Сбор.рец. На прод-ию для обуч. Во всех образ.учреж-Дели 2017 | B70: Чай с сахаром, с лимоном | C70: 185/10/5 | D70: 0.11 | E70: 0.02 | F70: 10.15 | G70: 41.32 | H70: -0.00 | I70: 2.03 | J70: 0.00 | K70: 0.01 | L70: 13.25 | M70: 3.96 | N70: 2.16 | O70: 0.33
A71: Хим.состав и калорийность российских продуктов питания табл 6 стр 134 , 2012 Дели + | B71: Хлеб пшеничный | C71: 20 | D71: 1.52 | E71: 0.16 | F71: 9.84 | G71: 47.00 | H71: 0.02 | I71: 0.00 | J71: 0.00 | K71: 0.22 | L71: 4.00 | M71: 13.00 | N71: 2.80 | O71: 0.22
A72: Хим.состав и калорийность российских продуктов питания,табл 6, стр 144 , 2012 Дели + | B72: Хлеб ржаной | C72: 30 | D72: 1.98 | E72: 0.36 | F72: 11.88 | G72: 59.40 | H72: 0.05 | I72: 0.00 | J72: 0.00 | K72: 0.42 | L72: 8.70 | M72: 45.00 | N72: 14.10 | O72: 1.17
B73: Итого: | C73: 500 | D73: =SUM(D68:D72) -> 17.77 | E73: =SUM(E68:E72) -> 17.62 | F73: 81.89 | G73: 582.72 | H73: 0.31 | I73: 2.95 | J73: 0.00 | K73: 3.66 | L73: 111.75 | M73: 423.46 | N73: 181.61 | O73: 9.49
B78: 4 день
A79: ТТК | B79: Котлета из мяса птицы с картофельное пюре, с маслом сливочным | C79: 90/150/3 | D79: 13.28 | E79: 18.58 | F79: 34.26 | G79: 348.45 | H79: 0.23 | I79: 19.10 | J79: 54.26 | K79: 2.72 | L79: 115.28 | M79: 172.28 | N79: 46.47 | O79: 2.27
A80: № 376 Сбор.рец. На прод-ию для обуч. Во всех образ.учреж-Дели 2017 | B80: Чай с сахаром, с яблоком | C80: 180/10/10 | D80: 0.11 | E80: 0.06 | F80: 10.98 | G80: 44.70 | H80: 0.00 | I80: 1.03 | J80: 0.00 | K80: 0.02 | L80: 12.55 | M80: 3.90 | N80: 2.30 | O80: 0.48
A81: Хим.состав и калорийность российских продуктов питания табл 6 стр 134 , 2012 Дели + | B81: Хлеб пшеничный | C81: 20 | D81: 1.52 | E81: 0.16 | F81: 9.84 | G81: 47.00 | H81: 0.02 | I81: 0.00 | J81: 0.00 | K81: 0.22 | L81: 4.00 | M81: 13.00 | N81: 2.80 | O81: 0.22
A82: Хим.состав и калорийность российских продуктов питания,табл 6, стр 144 , 2012 Дели + | B82: Хлеб ржаной | C82: 30 | D82: 1.98 | E82: 0.36 | F82: 11.88 | G82: 59.40 | H82: 0.05 | I82: 0.00 | J82: 0.00 | K82: 0.42 | L82: 8.70 | M82: 45.00 | N82: 14.10 | O82: 1.17
B83: Итого: | C83: 493 | D83: =SUM(D79:D82) -> 16.89 | E83: =SUM(E79:E82) -> 19.16 | F83: 66.96 | G83: 499.55 | H83: 0.31 | I83: 20.13 | J83: 54.26 | K83: 3.38 | L83: 140.53 | M83: 234.18 | N83: 65.67 | O83: 4.14
B85: 5 день
A86: №279,331 Сбор.рец. На прод-ию для питания детей в дошк образоват учрежд-Дели 2017 | B86: Тефтели мясные в сметанно-томатном соусе | C86: 60/40 | D86: 7.28 | E86: 11.94 | F86: 8.36 | G86: 123.99 | H86: 0.05 | I86: 0.28 | J86: 29.62 | K86: 0.42 | L86: 20.73 | M86: 80.20 | N86: 15.52 | O86: 0.64
A87: № 203 Сбор.рец. На прод-ию для обуч. Во всех образ.учреж-Дели 2017 | B87: Макаронные изделия отварные с маслом сливочным | C87: 180/2 | D87: 6.81 | E87: 2.25 | F87: 38.33 | G87: 200.76 | H87: 0.07 | I87: 0.00 | J87: 8.00 | K87: 0.95 | L87: 13.91 | M87: 45.20 | N87: 10.34 | O87: 1.03
A88: ТТК | B88: Напиток из свежих фруктов (75С) | C88: 200 | D88: 0.34 | E88: 0.17 | F88: 21.46 | G88: 103.50 | H88: 0.02 | I88: 3.17 | J88: 0.00 | K88: 0.13 | L88: 16.67 | M88: 7.05 | N88: 7.78 | O88: 0.88
A89: Хим.состав и калорийность российских продуктов питания,табл 6, стр 144 , 2012 Дели + | B89: Хлеб ржаной | C89: 30 | D89: 1.98 | E89: 0.36 | F89: 11.88 | G89: 59.40 | H89: 0.05 | I89: 0.00 | J89: 0.00 | K89: 0.42 | L89: 8.70 | M89: 45.00 | N89: 14.10 | O89: 1.17
B90: Итого: | C90: 512 | D90: =SUM(D86:D89) -> 16.41 | E90: =SUM(E86:E89) -> 14.72 | F90: 80.03 | G90: 487.65 | H90: 0.19 | I90: 3.45 | J90: 37.62 | K90: 1.92 | L90: 60.00 | M90: 177.45 | N90: 47.75 | O90: 3.72
B92: 6 день
A93: № 234, 304 Сбор.рец. На прод-ию для обуч. Во всех образ.учреж-Дели 2015 | B93: Биточки рыбные с рисом отварным рассыпчатым с маслом сливочным | C93: 90/150/3 | D93: 16.80 | E93: 17.20 | F93: 53.36 | G93: 416.65 | H93: 0.12 | I93: 0.94 | J93: 58.26 | K93: 2.81 | L93: 83.86 | M93: 163.90 | N93: 44.18 | O93: 1.79
A94: № 377 Сбор.рец. На прод-ию для обуч. Во всех образ.учреж-Дели 2017 | B94: Чай с сахаром, с лимоном | C94: 185/10/5 | D94: 0.11 | E94: 0.02 | F94: 10.15 | G94: 41.32 | H94: -0.00 | I94: 2.03 | J94: 0.00 | K94: 0.01 | L94: 13.25 | M94: 3.96 | N94: 2.16 | O94: 0.33
A95: Хим.состав и калорийность российских продуктов питания табл 6 стр 134 , 2012 Дели + | B95: Хлеб пшеничный | C95: 20 | D95: 1.52 | E95: 0.16 | F95: 9.84 | G95: 47.00 | H95: 0.02 | I95: 0.00 | J95: 0.00 | K95: 0.22 | L95: 4.00 | M95: 13.00 | N95: 2.80 | O95: 0.22
A96: Хим.состав и калорийность российских продуктов питания,табл 6, стр 144 , 2012 Дели + | B96: Хлеб ржаной | C96: 30 | D96: 1.98 | E96: 0.36 | F96: 11.88 | G96: 59.40 | H96: 0.05 | I96: 0.00 | J96: 0.00 | K96: 0.42 | L96: 8.70 | M96: 45.00 | N96: 14.10 | O96: 1.17
B97: Итого: | C97: 493 | D97: =SUM(D93:D96) -> 20.41 | E97: =SUM(E93:E96) -> 17.74 | F97: 85.23 | G97: 564.37 | H97: 0.19 | I97: 2.97 | J97: 58.26 | K97: 3.46 | L97: 109.81 | M97: 225.86 | N97: 63.24 | O97: 3.51
B98: Итого за 6 дней 1 недели: | C98: =C58+C65+C73+C83+C97+C90 -> 2944 | D98: 107.76 | E98: 104.68 | F98: 456.86 | G98: 3136.79 | H98: 1.39 | I98: 32.20 | J98: 275.92 | K98: 18.92 | L98: 756.60 | M98: 1575.89 | N98: 480.01 | O98: 27.38
A105: № рецептуры | B105: Наименование блюд | C105: Выход,г | D105: Белки, г | E105: Жиры, г | F105: Углеводы, г | G105: Калорийность, ккал | H105: Витамин B1, мг | I105: Витамин С, мг | J105: Витамин А, мг | K105: Витамин Е, мг | L105: Ca, мг | M105: P, мг | N105: Mg, мг | O105: Fe, мг
B106: 2-ая неделя
B107: 1 день
A108: ТТК | B108: Сырники из творога с кашей пшенной молочной с маслом сливочным | C108: 60/220/3 | D108: 17.90 | E108: 21.21 | F108: 47.96 | G108: 442.60 | H108: 0.15 | I108: 1.21 | J108: 62.48 | K108: 1.83 | L108: 239.96 | M108: 305.69 | N108: 54.79 | O108: 1.28
A109: № 376 Сбор.рец. На прод-ию для обуч. Во всех образ.учреж-Дели 2017 | B109: Чай "Витаминный" с шиповником | C109: 185/10/5 | D109: 0.24 | E109: 0.09 | F109: 12.43 | G109: 54.20 | H109: 0.00 | I109: 50.03 | J109: 0.00 | K109: 0.19 | L109: 13.95 | M109: 3.65 | N109: 2.25 | O109: 0.42
A110: Хим.состав и калорийность российских продуктов питания табл 6 стр 134 , 2012 Дели + | B110: Хлеб пшеничный | C110: 20 | D110: 1.52 | E110: 0.16 | F110: 9.84 | G110: 47.00 | H110: 0.02 | I110: 0.00 | J110: 0.00 | K110: 0.22 | L110: 4.00 | M110: 13.00 | N110: 2.80 | O110: 0.22
A111: Хим.состав и калорийность российских продуктов питания,табл 6, стр 144 , 2012 Дели + | B111: Хлеб ржаной | C111: 30 | D111: 1.98 | E111: 0.36 | F111: 11.88 | G111: 59.40 | H111: 0.05 | I111: 0.00 | J111: 0.00 | K111: 0.42 | L111: 8.70 | M111: 45.00 | N111: 14.10 | O111: 1.17
B112: Итого: | C112: 533 | D112: =SUM(D108:D111) -> 21.64 | E112: =SUM(E108:E111) -> 21.82 | F112: 82.11 | G112: 603.20 | H112: 0.22 | I112: 51.24 | J112: 62.48 | K112: 2.66 | L112: 266.61 | M112: 367.34 | N112: 73.94 | O112: 3.09
B114: 2 день
A115: № 265 Сбор.рец. На прод-ию для обуч. Во всех образ.учреж-Дели -2017 | B115: Плов из говядины с рисовой крупой | C115: 50/150 | D115: 15.95 | E115: 19.55 | F115: 39.75 | G115: 408.42 | H115: 0.04 | I115: 0.27 | J115: 0.00 | K115: 4.23 | L115: 89.33 | M115: 176.23 | N115: 40.58 | O115: 2.64
A116: № 376 Сбор.рец. На прод-ию для обуч. Во всех образ.учреж-Дели 2017 | B116: Чай с сахаром | C116: 190/10 | D116: 0.07 | E116: 0.02 | F116: 10.01 | G116: 40.00 | H116: 0.00 | I116: 0.03 | J116: 0.00 | K116: 0.00 | L116: 10.95 | M116: 2.80 | N116: 1.40 | O116: 0.27
A117: Хим.состав и калорийность российских продуктов питания табл 6 стр 134 , 2012 Дели + | B117: Хлеб пшеничный | C117: 20 | D117: 1.52 | E117: 0.16 | F117: 9.84 | G117: 47.00 | H117: 0.02 | I117: 0.00 | J117: 0.00 | K117: 0.22 | L117: 4.00 | M117: 13.00 | N117: 2.80 | O117: 0.22
A118: Хим.состав и калорийность российских продуктов питания,табл 6, стр 144 , 2012 Дели + | B118: Хлеб ржаной | C118: 30 | D118: 1.98 | E118: 0.36 | F118: 11.88 | G118: 59.40 | H118: 0.05 | I118: 0.00 | J118: 0.00 | K118: 0.42 | L118: 8.70 | M118: 45.00 | N118: 14.10 | O118: 1.17
B119: Итого: | C119: 450 | D119: =SUM(D115:D118) -> 19.52 | E119: =SUM(E115:E118) -> 20.09 | F119: 71.48 | G119: 554.82 | H119: 0.11 | I119: 0.30 | J119: 0.00 | K119: 4.87 | L119: 112.98 | M119: 237.03 | N119: 58.88 | O119: 4.30
B121: 3 день
A122: № 229 Сбор.рец. На прод-ию для обуч. Во всех образ.учреж-Дели 2017 | B122: Рыба, тушенная в томате с овощами | C122: 50/50 | D122: 9.05 | E122: 6.09 | F122: 3.80 | G122: 105.00 | H122: 0.05 | I122: 3.73 | J122: 5.82 | K122: 2.52 | L122: 69.07 | M122: 162.19 | N122: 48.53 | O122: 0.85
A123: № 312 Сбор.рец. На прод-ию для обуч. Во всех образ.учреж-Дели -2017 | B123: Пюре картофельное | C123: 180 | D123: 3.68 | E123: 5.76 | F123: 24.53 | G123: 164.70 | H123: 0.17 | I123: 21.79 | J123: 0.00 | K123: 0.22 | L123: 44.37 | M123: 103.91 | N123: 33.30 | O123: 1.21
A124: №342 Сбор.рец. На прод-ию для обуч. Во всех образ.учреж-Дели 2017 | B124: Компот из свежих яблок (75С) | C124: 200 | D124: 0.16 | E124: 0.16 | F124: 17.90 | G124: 74.60 | H124: 0.01 | I124: 0.90 | J124: 0.00 | K124: 0.08 | L124: 13.88 | M124: 4.40 | N124: 5.14 | O124: 0.92
A125: Хим.состав и калорийность российских продуктов питания,табл 6, стр 144 , 2012 Дели + | B125: Хлеб ржаной | C125: 30 | D125: 1.98 | E125: 0.36 | F125: 11.88 | G125: 59.40 | H125: 0.05 | I125: 0.00 | J125: 0.00 | K125: 0.42 | L125: 8.70 | M125: 45.00 | N125: 14.10 | O125: 1.17
B126: Итого: | C126: 500 | D126: =SUM(D122:D125) -> 14.87 | E126: =SUM(E122:E125) -> 12.37 | F126: 58.11 | G126: 403.70 | H126: 0.28 | I126: 26.42 | J126: 5.82 | K126: 3.24 | L126: 136.02 | M126: 315.50 | N126: 101.07 | O126: 4.15
B135: 4 день
A136: ТТК | B136: Тефтели куриные с гречневой крупой в сметанно-томатном соусе | C136: 60/40 | D136: 3.17 | E136: 5.19 | F136: 9.85 | G136: 118.01 | H136: 0.07 | I136: 0.28 | J136: 29.62 | K136: 0.46 | L136: 61.68 | M136: 92.80 | N136: 26.56 | O136: 1.04
A137: № 203 Сбор.рец. На прод-ию для обуч. Во всех образ.учреж-Дели 2017 | B137: Макаронные изделия отварные с маслом сливочным | C137: 180/2 | D137: 6.81 | E137: 2.25 | F137: 38.33 | G137: 200.76 | H137: 0.07 | I137: 0.00 | J137: 8.00 | K137: 0.95 | L137: 13.91 | M137: 45.20 | N137: 10.34 | O137: 1.03
A138: № 376 Сбор.рец. На прод-ию для обуч. Во всех образ.учреж-Дели 2017 | B138: Чай "Витаминный" с шиповником | C138: 185/10/5 | D138: 0.24 | E138: 0.09 | F138: 12.43 | G138: 54.20 | H138: 0.00 | I138: 50.03 | J138: 0.00 | K138: 0.19 | L138: 13.95 | M138: 3.65 | N138: 2.25 | O138: 0.42
A139: Хим.состав и калорийность российских продуктов питания,табл 6, стр 144 , 2012 Дели + | B139: Хлеб ржаной | C139: 30 | D139: 1.98 | E139: 0.36 | F139: 11.88 | G139: 59.40 | H139: 0.05 | I139: 0.00 | J139: 0.00 | K139: 0.42 | L139: 8.70 | M139: 45.00 | N139: 14.10 | O139: 1.17
B140: Итого: | C140: 512 | D140: =SUM(D136:D139) -> 12.19 | E140: =SUM(E136:E139) -> 7.89 | F140: 72.49 | G140: 432.37 | H140: 0.19 | I140: 50.31 | J140: 37.62 | K140: 2.01 | L140: 98.24 | M140: 186.65 | N140: 53.25 | O140: 3.66
B142: 5 день
A143: № 143,241 Сбор.рец. На прод-ию для обуч. Во всех образ.учреж-Дели 2017 | B143: Овощи тушеные с мясом | C143: 50/150 | D143: 12.48 | E143: 15.68 | F143: 19.34 | G143: 271.50 | H143: 0.12 | I143: 18.77 | J143: 39.00 | K143: 4.67 | L143: 89.15 | M143: 148.63 | N143: 39.69 | O143: 2.23
A144: №349 Сбор.рец. На прод-ию для обуч. Во всех образ.учреж-Дели 2017 | B144: Компот из сухофруктов (75С) | C144: 200 | D144: 0.66 | E144: 0.09 | F144: 22.03 | G144: 92.80 | H144: 0.02 | I144: 0.73 | J144: 0.00 | K144: 0.51 | L144: 32.18 | M144: 23.44 | N144: 17.46 | O144: 0.67
A145: Хим.состав и калорийность российских продуктов питания табл 6 стр 134 , 2012 Дели + | B145: Хлеб пшеничный | C145: 30 | D145: 2.28 | E145: 0.24 | F145: 14.76 | G145: 70.50 | H145: 0.03 | I145: 0.00 | J145: 0.00 | K145: 0.33 | L145: 6.00 | M145: 19.50 | N145: 4.20 | O145: 0.33
A146: Хим.состав и калорийность российских продуктов питания,табл 6, стр 144 , 2012 Дели + | B146: Хлеб ржаной | C146: 30 | D146: 1.98 | E146: 0.36 | F146: 11.88 | G146: 59.40 | H146: 0.05 | I146: 0.00 | J146: 0.00 | K146: 0.42 | L146: 8.70 | M146: 45.00 | N146: 14.10 | O146: 1.17
B147: Итого: | C147: 460 | D147: =SUM(D143:D146) -> 17.40 | E147: =SUM(E143:E146) -> 16.37 | F147: 68.01 | G147: 494.20 | H147: 0.22 | I147: 19.49 | J147: 39.00 | K147: 5.93 | L147: 136.03 | M147: 236.57 | N147: 75.45 | O147: 4.39
B149: 6 день
A150: ТТК | B150: Котлеты "Аппетитные" с кашей гречневой рассыпчатой с маслом сливочным | C150: 75/150/3 | D150: 15.16 | E150: 16.19 | F150: 44.63 | G150: 386.76 | H150: 0.26 | I150: 1.49 | J150: 71.98 | K150: 1.73 | L150: 41.59 | M150: 320.78 | N150: 154.60 | O150: 6.23
A151: № 377 Сбор.рец. На прод-ию для обуч. Во всех образ.учреж-Дели 2017 | B151: Чай с сахаром, с лимоном | C151: 185/10/5 | D151: 0.11 | E151: 0.02 | F151: 10.15 | G151: 41.32 | H151: -0.00 | I151: 2.03 | J151: 0.00 | K151: 0.01 | L151: 13.25 | M151: 3.96 | N151: 2.16 | O151: 0.33
A152: Хим.состав и калорийность российских продуктов питания,табл 6, стр 144 , 2012 Дели + | B152: Хлеб ржаной | C152: 30 | D152: 1.98 | E152: 0.36 | F152: 11.88 | G152: 59.40 | H152: 0.05 | I152: 0.00 | J152: 0.00 | K152: 0.42 | L152: 8.70 | M152: 45.00 | N152: 14.10 | O152: 1.17
B153: Итого: | C153: 458 | D153: =SUM(D150:D152) -> 17.25 | E153: =SUM(E150:E152) -> 16.57 | F153: 66.66 | G153: 487.48 | H153: 0.31 | I153: 3.52 | J153: 71.98 | K153: 2.15 | L153: 63.54 | M153: 369.74 | N153: 170.86 | O153: 7.73
B154: Итого за 6 дней 2 недели: | C154: =C112+C119+C126+C140+C147+C153 -> 2913 | D154: 102.8636333 | E154: 95.1186 | F154: 418.8451 | G154: 2975.766667 | H154: 1.3368 | I154: 151.2748952 | J154: 216.8991667 | K154: 20.85854524 | L154: 813.4144429 | M154: 1712.833705 | N154: 533.4589548 | O154: 27.3178619
B155: ВСЕГО за 12 дней: | C155: =C58+C65+C73+C83+C97+C90+C112+C119+C126+C140+C147+C153 -> 5857 | D155: 210.6198333 | E155: 199.8034 | F155: 875.7026 | G155: 6112.556667 | H155: 2.7298 | I155: 183.4775952 | J155: 492.8191667 | K155: 39.77904524 | L155: 1570.014743 | M155: 3288.721755 | N155: 1013.464755 | O155: 54.6989619
B156: В среднем на 1 учащегося в день: | C156: =C155/12 -> 488 | D156: =D155/12 -> 17.55 | E156: =E155/12 -> 16.65 | F156: 72.98 | G156: 509.38 | H156: 0.23 | I156: 15.29 | J156: 41.07 | K156: 3.31 | L156: 130.83 | M156: 274.06 | N156: 84.46 | O156: 4.56

Sheet Замена 1 неделя
B2: Замена блюда
B4: День | C4: Прием пищи | D4: Заменяемое блюдо/ Вариант Замены | E4: по меню | F4: Выход,г | G4: Белки,г | H4: Жиры,г | I4: Углеводы,г | J4: ЭЦ,ккал
B5: День 1 (1 неделя) | C5: Горячий завтрак младшие классы (7-11 лет) | D5: Салат из моркови с яблоками | F5: 60 | G5: 0.64 | H5: 3.01 | I5: 5.11 | J5: 50.91
D6: Котлета из мяса птицы | F6: 90 | G6: 10.20 | H6: 12.93 | I6: 13.79 | J6: 198.00
D7: Макаронные изделия отварные с маслом сливочным | F7: 150/5 | G7: 5.70 | H7: 4.30 | I7: 31.99 | J7: 189.30
D8: Компот из сухофруктов (75С) | F8: 200 | G8: 0.66 | H8: 0.09 | I8: 22.03 | J8: 92.80
D9: Хлеб ржаной | F9: 30 | G9: 1.98 | H9: 0.36 | I9: 11.88 | J9: 59.40
D10: Итого: | F10: 535 | G10: =SUM(G5:G9) -> 19.18 | H10: =SUM(H5:H9) -> 20.69 | I10: =SUM(I5:I9) -> 84.80 | J10: =SUM(J5:J9) -> 590.41 | K10: 25%
D12: Салат из моркови с яблоками | E12: замена | F12: 60 | G12: 0.64 | H12: 3.01 | I12: 5.11 | J12: 50.91
D13: Сосиски отварные | F13: 90 | G13: 10.80 | H13: 13.50 | I13: 0.90 | J13: 187.00
D14: Макаронные изделия отварные | F14: 150/3 | G14: 5.68 | H14: 2.85 | I14: 31.96 | J14: 176.10
D15: Компот из сухофруктов (75С) (сахар 20г) | F15: 200 | G15: 0.66 | H15: 0.09 | I15: 32.93 | J15: 132.80
D16: Хлеб ржаной | F16: 30 | G16: 1.98 | H16: 0.36 | I16: 11.88 | J16: 59.40
D17: Итого: | F17: 533 | G17: =G12+G13+G14+G15+G16 -> 19.76 | H17: =H12+H13+H14+H15+H16 -> 19.81 | I17: =I12+I13+I14+I15+I16 -> 82.78 | J17: =J12+J13+J14+J15+J16 -> 606.21 | K17: 25%
B20: День | C20: Прием пищи | D20: Заменяемое блюдо/ Вариант Замены | E20: по меню | F20: Выход,г | G20: Белки,г | H20: Жиры,г | I20: Углеводы,г | J20: ЭЦ,ккал
D21: Котлеты из мяса птицы с макаронными изделиями отварными, с маслом сливочным | F21: 90/150/3 | G21: 15.88 | H21: 17.78 | I21: 45.75 | J21: 374.10
D22: Компот из сухофруктов (75С) | F22: 200 | G22: 0.66 | H22: 0.09 | I22: 22.03 | J22: 92.80
D23: Хлеб ржаной | F23: 30 | G23: 1.98 | H23: 0.36 | I23: 11.88 | J23: 59.40
D24: Итого: | F24: 473 | G24: =SUM(G21:G23) -> 18.52 | H24: =SUM(H21:H23) -> 18.23 | I24: =SUM(I21:I23) -> 79.67 | J24: =SUM(J21:J23) -> 526.30
D26: Сосиска отварная с макаронными изделиями отварными | F26: 90/150/3 | G26: =G13+G14 -> 16.48 | H26: =H13+H14 -> 16.35 | I26: =I13+I14 -> 32.86 | J26: =J13+J14 -> 363.10
D27: Компот из сухофруктов (75С) | F27: 200 | G27: 0.66 | H27: 0.09 | I27: 22.03 | J27: 92.80
D28: Хлеб ржаной | F28: 30 | G28: 1.98 | H28: 0.36 | I28: 11.88 | J28: 59.40
D29: Итого: | F29: 473 | G29: =SUM(G26:G28) -> 19.12 | H29: =SUM(H26:H28) -> 16.80 | I29: =SUM(I26:I28) -> 66.77 | J29: =SUM(J26:J28) -> 515.30

Sheet Замена 2 неделя
B2: Замена блюда
B6: День | C6: Прием пищи | D6: Заменяемое блюдо/ Вариант Замены | E6: по меню | F6: Выход,г | G6: Белки,г | H6: Жиры,г | I6: Углеводы,г | J6: ЭЦ,ккал
B7: День 1 (2 неделя) | C7: Горячий завтрак младшие классы (7-11 лет) | D7: Сырники из творога с кашей пшенной молочной с маслом сливочным | F7: 60/180/5 | G7: 16.02 | H7: 18.13 | I7: 42.98 | J7: 386.40
D8: Чай "Витаминный" с шиповником | F8: 185/10/5 | G8: 0.24 | H8: 0.09 | I8: 12.43 | J8: 54.20
D9: Хлеб пшеничный | F9: 25 | G9: 1.90 | H9: 0.20 | I9: 12.30 | J9: 58.75
D10: Хлеб ржаной | F10: 30 | G10: 1.98 | H10: 0.36 | I10: 11.88 | J10: 59.40
D11: Итого: | F11: 500 | G11: 20.14 | H11: 18.78 | I11: 79.59 | J11: 558.75 | K11: 25%
D13: Сосиски отварные | E13: замена | F13: 90 | G13: 10.80 | H13: 13.50 | I13: 0.90 | J13: 169.30
D14: Каша пшенная молочная с маслом сливочным | F14: 180/3 | G14: 4.09 | H14: 5.08 | I14: 42.26 | J14: 216.90
D15: Чай "Витаминный" с шиповником | F15: 185/10/5 | G15: 0.24 | H15: 0.09 | I15: 12.43 | J15: 54.20
D16: Хлеб пшеничный | F16: 25 | G16: 1.90 | H16: 0.20 | I16: 12.30 | J16: 58.75
D17: Хлеб ржаной | F17: 30 | G17: 1.98 | H17: 0.36 | I17: 11.88 | J17: 59.40
D18: Итого: | F18: 528 | G18: =SUM(G13:G17) -> 19.00 | H18: =SUM(H13:H17) -> 19.23 | I18: =SUM(I13:I17) -> 79.77 | J18: =SUM(J13:J17) -> 558.55 | K18: 25%
B20: День | C20: Прием пищи | D20: Заменяемое блюдо/ Вариант Замены | E20: по меню | F20: Выход,г | G20: Белки,г | H20: Жиры,г | I20: Углеводы,г | J20: ЭЦ,ккал
B21: День 1 (2 неделя) | C21: Горячий завтрак старшие классы (12 лет и старше) | D21: Сырники из творога с кашей пшенной молочной с маслом сливочным | F21: 60/220/3 | G21: 17.90 | H21: 21.21 | I21: 47.96 | J21: 442.60
D22: Чай "Витаминный" с шиповником | F22: 185/10/5 | G22: 0.24 | H22: 0.09 | I22: 12.43 | J22: 54.20
D23: Хлеб пшеничный | F23: 20 | G23: 1.52 | H23: 0.16 | I23: 9.84 | J23: 47.00
D24: Хлеб ржаной | F24: 30 | G24: 1.98 | H24: 0.36 | I24: 11.88 | J24: 59.40
D25: Итого: | F25: 533 | G25: =SUM(G21:G24) -> 21.64 | H25: =SUM(H21:H24) -> 21.82 | I25: =SUM(I21:I24) -> 82.11 | J25: =SUM(J21:J24) -> 603.20
D27: Сосиски отварные | F27: 100 | G27: 12.00 | H27: 15.00 | I27: 0.90 | J27: 187.00
D28: Каша пшенная молочная | F28: 200 | G28: 7.47 | H28: 8.09 | I28: 36.98 | J28: 252.00
D29: Чай "Витаминный" с шиповником | F29: 185/10/5 | G29: 0.24 | H29: 0.09 | I29: 12.43 | J29: 54.20
D30: Хлеб пшеничный | F30: 20 | G30: 1.52 | H30: 0.16 | I30: 9.84 | J30: 47.00
D31: Хлеб ржаной | F31: 30 | G31: 1.98 | H31: 0.36 | I31: 11.88 | J31: 59.40
D32: Итого: | F32: 550 | G32: =G27+G28+G29+G30+G31 -> 23.21 | H32: =H27+H28+H29+H30+H31 -> 23.70 | I32: =I27+I28+I29+I30+I31 -> 72.03 | J32: =J27+J28+J29+J30+J31 -> 599.60

Sheet Меню сокращенное
A1: ПРИМЕРНОЕ ДВУХНЕДЕЛЬНОЕ МЕНЮ ДЛЯ ОБУЧАЮЩИХСЯ В ОБЩЕОБРАЗОВАТЕЛЬНЫХ ОРГАНИЗАЦИЯХ (сезон осенне-зимний)
A2: ГОРЯЧИЙ ЗАВТРАК | M2: Мл.кл 66,76 рублей / Ст.кл 50,00 руб. | P2: ГПД - 25 руб
A3: 1-ая неделя
A4: 1 день | D4: 2 день | G4: 3 день | J4: 4 день | M4: 5 день | P4: 6 день
A5: Наименование блюд | B5: Выход,г | D5: Наименование блюд | E5: Выход,г | G5: Наименование блюд | H5: Выход,г | J5: Наименование блюд | K5: Выход,г | M5: Наименование блюд | N5: Выход,г | P5: Наименование блюд | Q5: Выход,г
B6: 7-11 лет | C6: 12 лет и ст | E6: 7-11 лет | F6: 12 лет и ст | H6: 7-11 лет | I6: 12 лет и ст | K6: 7-11 лет | L6: 12 лет и ст | N6: 7-11 лет | O6: 12 лет и ст | Q6: 7-11 лет | R6: 12 лет и ст
A7: Салат из моркови с яблоками | B7: 60 | C7: нет | D7: Плоды и ягоды свежие (яблоки) | E7: 100 | F7: нет | G7: Сыр порционно | H7: 10 | I7: нет | J7: Свекла отварная дольками | K7: 60 | L7: нет | M7: Сыр порционно | N7: 15 | O7: нет | P7: Салат из свежей капусты с морковью | Q7: 80 | R7: нет
A8: Котлета из мяса птицы ВОЗМОЖНА ЗАМЕНА НА СОСИСКИ | B8: 90 | C8: 90 | D8: Сырник из творога мл.кл | E8: 60 | F8: 60 | G8: Гуляш из отварной говядины | H8: 50/50 | I8: 50/50 | J8: Котлета из мяса птицы | K8: 90 | L8: 90 | M8: Тефтели мясные в сметанно-томатном соусе | N8: 60/40 | O8: 60/40 | P8: Биточки рыбные(минтай) мл.кл./ Биточки рыбные ст.кл. | Q8: 90 | R8: 90
A9: Макаронные изделия с маслом сливочным | B9: 150/5 | C9: 150/3 | D9: Каша вязкая "Дружба" молочная с маслом сливочным | E9: 150/5 | F9: 180/3 | G9: Каша гречневая рассыпчатая | H9: 150 | I9: 150 | J9: Пюре картофельное с маслом сливочным | K9: 150/3 | L9: 150/3 | M9: Макаронные изделия отварные с маслом сливочным мл.кл. | N9: 180/5 | O9: 180/2 | P9: Рис отварный рассыпчатый с маслом сливочным | Q9: 150/3 | R9: 150/3
A10: Компот из сухофруктов (75С) (сахара 10г) | B10: 200 | C10: 200 | D10: Чай с сахаром | E10: 190/10 | F10: 190/10 | G10: Чай с сахаром,с лимоном | H10: 185/10/5 | I10: 185/10/5 | J10: Чай с сахаром,с яблоком | K10: 180/10/10 | L10: 180/10/10 | M10: Напиток из свежих фруктов (75С) (сахар 20г) | N10: 200 | O10: 200 | P10: Чай с сахаром,с лимоном | Q10: 185/10/5 | R10: 185/10/5
G11: Хлеб пшеничный | H11: нет | I11: 20 | J11: Хлеб пшеничный | K11: 30 | L11: 20 | M11: Хлеб пшеничный | N11: 45 | O11: нет | P11: Хлеб пшеничный | Q11: нет | R11: 20
A12: Хлеб ржаной | B12: 30 | C12: 30 | D12: Хлеб ржаной | E12: 30 | F12: 30 | G12: Хлеб ржаной | H12: 50 | I12: 30 | J12: Хлеб ржаной | K12: 40 | L12: 30 | M12: Хлеб ржаной | N12: нет | O12: 30 | P12: Хлеб ржаной | Q12: 30 | R12: 30
A13: Итого: | B13: 535 | C13: 473 | D13: Итого: | E13: 545 | F13: 473 | G13: Итого: | H13: 510 | I13: 500 | J13: Итого: | K13: 573 | L13: 493 | M13: Итого: | N13: 545 | O13: 512 | P13: Итого: | Q13: 553 | R13: 493
A14: Белки,г | B14: 19.180 | C14: 18.520 | E14: 16.100 | F14: 17.750 | H14: 20.200 | I14: 17.770 | K14: 19.390 | L14: 16.890 | N14: 20.090 | O14: 16.410 | Q14: 19.940 | R14: 20.410
A15: Жиры,г | B15: 20.690 | C15: 18.230 | E15: 16.070 | F15: 17.210 | H15: 20.360 | I15: 17.620 | K15: 20.020 | L15: 19.160 | N15: 20.080 | O15: 14.720 | Q15: 20.180 | R15: 17.740
A16: Углеводы,г | B16: 84.800 | C16: 79.670 | E16: 64.010 | F16: 63.080 | H16: 79.970 | I16: 81.890 | K16: 81.720 | L16: 66.960 | N16: 83.920 | O16: 80.030 | Q16: 80.570 | R16: 85.230
A17: ЭЦ,ккал | B17: 590.410 | C17: 526.300 | E17: 477.300 | F17: 476.200 | H17: 609.650 | I17: 582.720 | K17: 571.650 | L17: 499.550 | N17: 560.840 | O17: 487.650 | Q17: 565.690 | R17: 564.370
A19: Меню ГПД 1 блюдо + Напиток+Хлеб
A20: Рассольник ленинградский с куриными фрикадельками, со сметаной | B20: 250/10/5 | D20: Суп-лапша домашняя с мясом птицы | E20: 250/10 | G20: Шулпа с говядиной | H20: 250/10 | J20: Суп крестьянский с крупой /пшено/ с куриными фрикадельками, со сметаной | K20: 250/10/5 | M20: Харчо с мясом птицы,со сметаной | N20: 250/10/5 | P20: Борщ из св капусты с мясными фрикадельками, со сметаной | Q20: 250/10/5
A21: Компот из свежих яблок с изюмом | B21: 200 | D21: Напиток из шиповника | E21: 200 | G21: Компот из урюка | H21: 200 | J21: Чай с мармеладом | K21: 190/10 | M21: Компот из сухофруктов | N21: 200 | P21: Чай с сахаром | Q21: 190/10
A22: Хлеб ржаной | B22: 30 | D22: Хлеб ржаной | E22: 30 | G22: Хлеб ржаной | H22: 30 | J22: Хлеб ржаной | K22: 30 | M22: Хлеб ржаной | N22: 30 | P22: Хлеб ржаной | Q22: 30
A23: 2-ая неделя
A24: 1 день | D24: 2 день | G24: 3 день | J24: 4 день | M24: 5 день | P24: 6 день
A25: Наименование блюд | B25: Выход,г | D25: Наименование блюд | E25: Выход,г | G25: Наименование блюд | H25: Выход,г | J25: Наименование блюд | K25: Выход,г | M25: Наименование блюд | N25: Выход,г | P25: Наименование блюд | Q25: Выход,г
B26: 7-11 лет | C26: 12 лет и ст | E26: 7-11 лет | F26: 12 лет и ст | H26: 7-11 лет | I26: 12 лет и ст | K26: 7-11 лет | L26: 12 лет и ст | N26: 7-11 лет | O26: 12 лет и ст | Q26: 7-11 лет | R26: 12 лет и ст
D27: Плоды и ягоды свежие (яблоки) | E27: 100 | F27: нет | G27: Салат из отварной свеклы | H27: 60 | I27: нет | M27: Плоды и ягоды свежие (яблоки) | N27: 100 | O27: нет | P27: Салат из свежей капусты с морковью | Q27: 80 | R27: нет
A28: Сырник из творога мл.кл /ВОЗМОЖНА ЗАМЕНА НА СОСИСКИ | B28: 60 | C28: 60 | D28: Плов из говядины с рисовой крупой | E28: 50/150 | F28: 50/150 | G28: Рыба (горбуша), тушеная в томате с овощами | H28: 50/50 | I28: 50/50 | J28: Тефтели куриные с гречневой крупой сметанно-томатном соусе | K28: 60/40 | L28: 60/40 | M28: Овощи тушеные с мясом | N28: 50/150 | O28: 50/150 | P28: Котлеты "Аппетитные" | Q28: 90 | R28: 75
A29: Каша пшенная молочная с маслом сливочным мл.кл. /Каша пшенная молочная ст.кл. | B29: 180/5 | C29: 220/3 | G29: Пюре картофельное с маслом сливочным /Пюре картофельное ст.кл | H29: 150/3 | I29: 180 | J29: Макаронные изделия отварные с маслом сливочным мл.кл. | K29: 180/3 | L29: 180/2 | P29: Каша гречневая рассыпчатая с маслом сливочным | Q29: 150/3 | R29: 150/3
A30: Чай "Витаминный" с шиповником | B30: 185/10/5 | C30: 185/10/5 | D30: Чай с сахаром | E30: 190/10 | F30: 190/10 | G30: Компот из свежих яблок (75С)(сахара 10г) | H30: 200 | I30: 200 | J30: Какао с молоком (сахар 10г) /Чай "Витаминный" с шиповником ст.кл. | K30: 200 | L30: 185/10/5 | M30: Компот из сухофруктов (75С) (сахара 10г) | N30: 200 | O30: 200 | P30: Чай с сахаром,с лимоном | Q30: 185/10/5 | R30: 185/10/5
A31: Хлеб пшеничный | B31: 25 | C31: 20 | D31: Хлеб пшеничный | E31: 25 | F31: 20 | G31: Хлеб пшеничный | H31: 35 | I31: нет | J31: Хлеб пшеничный | K31: 30 | L31: нет | M31: Хлеб пшеничный | N31: 30 | O31: 30 | P31: Хлеб пшеничный | Q31: 30 | R31: нет
A32: Хлеб ржаной | B32: 30 | C32: 30 | D32: Хлеб ржаной | E32: 20 | F32: 30 | G32: Хлеб ржаной | H32: нет | I32: 30 | J32: Хлеб ржаной | K32: нет | L32: 30 | M32: Хлеб ржаной | N32: нет | O32: 30 | P32: Хлеб ржаной | Q32: нет | R32: 30
A33: Итого: | B33: 500 | C33: 533 | D33: Итого: | E33: 545 | F33: 450 | G33: Итого: | H33: 548 | I33: 500 | J33: Итого: | K33: 513 | L33: 512 | M33: Итого: | N33: 530 | O33: 460 | P33: Итого: | Q33: 553 | R33: 458
A34: Белки,г | B34: 20.140 | C34: 21.640 | E34: 19.640 | F34: 19.520 | H34: 15.790 | I34: 14.870 | K34: 16.170 | L34: 12.190 | N34: 15.820 | O34: 17.400 | Q34: 20.140 | R34: 17.250
A35: Жиры,г | B35: 18.780 | C35: 21.820 | E35: 20.410 | F35: 20.090 | H35: 16.390 | I35: 12.370 | K35: 16.570 | L35: 7.890 | N35: 16.410 | O35: 16.370 | Q35: 19.480 | R35: 16.570
A36: Углеводы,г | B36: 79.590 | C36: 82.110 | E36: 79.780 | F36: 71.480 | H36: 64.340 | I36: 58.110 | K36: 63.980 | L36: 72.490 | N36: 65.930 | O36: 68.010 | Q36: 82.990 | R36: 66.660
A37: ЭЦ,ккал | B37: 558.750 | C37: 603.200 | E37: 593.770 | F37: 554.820 | H37: 467.980 | I37: 403.700 | K37: 489.050 | L37: 432.370 | N37: 481.800 | O37: 494.200 | Q37: 608.140 | R37: 487.480
A38: * Замена 1 день 1 и 2 недели котлет из мяса птицы и сырников производится строго по таблице замены приложенной к меню.
A39: * В 4 день 1 недели с 15.11.2024 тефтели мясные в сметанно-томатном соусе и макаронные изделия отварные с маслом сливочным заменяются на пельмени отварные с маслом сливочным
A40: Меню ГПД 1 блюдо + Напиток+Хлеб
A41: Суп картофельный с вермишелью,с куриными фрикадельками | B41: 250/10 | D41: Щи из св капусты с картофелем на мясном бульоне, со сметаной | E41: 250/5 | G41: Суп с рисовой крупой с мясными фрикадельками | H41: 250/10 | J41: Суп картофельный с горохом на курином бульоне | K41: 250 | M41: Солянка по-домашнему | N41: 250 | P41: Рассольник домашний с мясными фрикадельками | Q41: 250
A42: Чай с сахаром,с лимоном | B42: 185/10/5 | D42: Компот из сухофруктов | E42: 200 | G42: Напиток из шиповника | H42: 200 | J42: Чай с сахаром | K42: 190/10 | M42: Чай с мармеладом | N42: 190/10 | P42: Компот из изюма и урюка | Q42: 200
A43: Хлеб ржаной | B43: 30 | D43: Хлеб ржаной | E43: 30 | G43: Хлеб ржаной | H43: 30 | J43: Хлеб ржаной | K43: 30 | M43: Хлеб ржаной | N43: 30 | P43: Хлеб ржаной | Q43: 30
